[Event "Titled Tuesday Blitz February 21 Early 2023"]
[White "Skvortsov, Andrei"]
[Black "Hakobyan, Aram"]
[WhiteFideId "24108600"]
[BlackFideId "13306677"]
[WhiteElo "2313"]
[BlackElo "2608"]
[Result "1/2-1/2"]
[Round "02"]
[TimeControl "180+2"]
[Date "2023.02.21"]
[WhiteClock "0:00:15"]
[BlackClock "0:00:20"]

1. e4 {[%clk 0:03:00]}  e5 {[%clk 0:02:57]} 2. Nf3 {[%clk 0:02:57]}  Nc6 {[%clk 0:02:57]} 3. Nc3 {[%clk 0:02:57]}  Nf6 {[%clk 0:02:56]} 4. d4 {[%clk 0:02:58]}  exd4 {[%clk 0:02:56]} 5. Nxd4 {[%clk 0:02:59]}  Bb4 {[%clk 0:02:56]} 6. Nxc6 {[%clk 0:02:59]}  bxc6 {[%clk 0:02:56]} 7. Bd3 {[%clk 0:02:58]}  O-O {[%clk 0:02:56]} 8. O-O {[%clk 0:02:58]}  d5 {[%clk 0:02:56]} 9. exd5 {[%clk 0:02:59]}  Bg4 {[%clk 0:02:56]} 10. f3 {[%clk 0:02:49]}  Bh5 {[%clk 0:02:55]} 11. dxc6 {[%clk 0:02:48]}  Qd4+ {[%clk 0:02:55]} 12. Kh1 {[%clk 0:02:48]}  Bxc3 {[%clk 0:02:55]} 13. bxc3 {[%clk 0:02:49]}  Qxc3 {[%clk 0:02:56]} 14. Rb1 {[%clk 0:02:49]}  Bg6 {[%clk 0:02:56]} 15. Bb2 {[%clk 0:02:39]}  Qxc6 {[%clk 0:02:55]} 16. Bxf6 {[%clk 0:02:40]}  Qxf6 {[%clk 0:02:54]} 17. Bxg6 {[%clk 0:02:40]}  hxg6 {[%clk 0:02:54]} 18. Qd3 {[%clk 0:02:28]}  Rfd8 {[%clk 0:02:50]} 19. Qc4 {[%clk 0:02:28]}  Qd6 {[%clk 0:02:40]} 20. h3 {[%clk 0:02:18]}  a5 {[%clk 0:02:40]} 21. Rb3 {[%clk 0:02:17]}  Qe7 {[%clk 0:02:35]} 22. Rd3 {[%clk 0:02:14]}  Rxd3 {[%clk 0:02:35]} 23. Qxd3 {[%clk 0:02:14]}  Qe6 {[%clk 0:02:29]} 24. Qb3 {[%clk 0:02:09]}  Qe2 {[%clk 0:02:21]} 25. Qd3 {[%clk 0:01:50]}  Re8 {[%clk 0:02:15]} 26. Rd1 {[%clk 0:01:45]}  Qf2 {[%clk 0:02:10]} 27. Rf1 {[%clk 0:01:41]}  Qc5 {[%clk 0:02:07]} 28. Rb1 {[%clk 0:01:37]}  a4 {[%clk 0:02:02]} 29. Kh2 {[%clk 0:01:22]}  c6 {[%clk 0:01:29]} 30. Qd7 {[%clk 0:00:58]}  Qe5+ {[%clk 0:01:26]} 31. Kh1 {[%clk 0:00:56]}  Re6 {[%clk 0:01:08]} 32. Qd8+ {[%clk 0:00:53]}  Re8 {[%clk 0:01:07]} 33. Qd7 {[%clk 0:00:54]}  Qe2 {[%clk 0:00:53]} 34. Qxc6 {[%clk 0:00:51]}  Rd8 {[%clk 0:00:54]} 35. Qxa4 {[%clk 0:00:28]}  Rc8 {[%clk 0:00:54]} 36. Qe4 {[%clk 0:00:18]}  Qa6 {[%clk 0:00:49]} 37. a4 {[%clk 0:00:17]}  f5 {[%clk 0:00:43]} 38. Qb7 {[%clk 0:00:16]}  Qxb7 {[%clk 0:00:36]} 39. Rxb7 {[%clk 0:00:17]}  Rxc2 {[%clk 0:00:37]} 40. a5 {[%clk 0:00:13]}  Ra2 {[%clk 0:00:37]} 41. Rb6 {[%clk 0:00:14]}  Rxa5 {[%clk 0:00:35]} 42. Rxg6 {[%clk 0:00:13]}  Kf7 {[%clk 0:00:36]} 43. Rb6 {[%clk 0:00:13]}  f4 {[%clk 0:00:31]} 44. Kh2 {[%clk 0:00:11]}  g5 {[%clk 0:00:31]} 45. Rc6 {[%clk 0:00:11]}  Kg7 {[%clk 0:00:31]} 46. Kg1 {[%clk 0:00:08]}  Ra1+ {[%clk 0:00:31]} 47. Kh2 {[%clk 0:00:09]}  Ra5 {[%clk 0:00:32]} 48. h4 {[%clk 0:00:09]}  gxh4 {[%clk 0:00:30]} 49. Kh3 {[%clk 0:00:09]}  Rg5 {[%clk 0:00:31]} 50. Rc4 {[%clk 0:00:07]}  Rg3+ {[%clk 0:00:32]} 51. Kh2 {[%clk 0:00:08]}  h3 {[%clk 0:00:31]} 52. Rxf4 {[%clk 0:00:05]}  Rxg2+ {[%clk 0:00:28]} 53. Kxh3 {[%clk 0:00:05]}  Ra2 {[%clk 0:00:29]} 54. Kg4 {[%clk 0:00:05]}  Kg6 {[%clk 0:00:30]} 55. Rc4 {[%clk 0:00:05]}  Rg2+ {[%clk 0:00:30]} 56. Kf4 {[%clk 0:00:05]}  Rh2 {[%clk 0:00:31]} 57. Rc6+ {[%clk 0:00:06]}  Kf7 {[%clk 0:00:31]} 58. Kg3 {[%clk 0:00:06]}  Rh1 {[%clk 0:00:31]} 59. Rc4 {[%clk 0:00:07]}  Kf6 {[%clk 0:00:32]} 60. Rf4+ {[%clk 0:00:06]}  Ke5 {[%clk 0:00:32]} 61. Rg4 {[%clk 0:00:07]}  Kf5 {[%clk 0:00:32]} 62. Rf4+ {[%clk 0:00:08]}  Kg6 {[%clk 0:00:32]} 63. Rg4+ {[%clk 0:00:08]}  Kf7 {[%clk 0:00:33]} 64. Kg2 {[%clk 0:00:09]}  Ra1 {[%clk 0:00:33]} 65. Re4 {[%clk 0:00:09]}  Kf6 {[%clk 0:00:33]} 66. Kg3 {[%clk 0:00:10]}  Kf5 {[%clk 0:00:33]} 67. Rf4+ {[%clk 0:00:10]}  Kg6 {[%clk 0:00:34]} 68. Rb4 {[%clk 0:00:11]}  Kf7 {[%clk 0:00:35]} 69. Rb5 {[%clk 0:00:11]}  Rg1+ {[%clk 0:00:35]} 70. Kf4 {[%clk 0:00:11]}  Rh1 {[%clk 0:00:36]} 71. Kg4 {[%clk 0:00:12]}  Kf6 {[%clk 0:00:36]} 72. Rb6+ {[%clk 0:00:12]}  Kg7 {[%clk 0:00:36]} 73. f4 {[%clk 0:00:13]}  Rg1+ {[%clk 0:00:37]} 74. Kf5 {[%clk 0:00:13]}  Rc1 {[%clk 0:00:35]} 75. Rb7+ {[%clk 0:00:14]}  Kg8 {[%clk 0:00:35]} 76. Kg5 {[%clk 0:00:14]}  Rc6 {[%clk 0:00:35]} 77. f5 {[%clk 0:00:14]}  Ra6 {[%clk 0:00:36]} 78. Rc7 {[%clk 0:00:14]}  Rb6 {[%clk 0:00:36]} 79. Re7 {[%clk 0:00:14]}  Ra6 {[%clk 0:00:36]} 80. Re6 {[%clk 0:00:15]}  Ra7 {[%clk 0:00:18]} 81. Kf6 {[%clk 0:00:14]}  Rf7+ {[%clk 0:00:18]} 82. Kg5 {[%clk 0:00:14]}  Ra7 {[%clk 0:00:18]} 83. Rg6+ {[%clk 0:00:15]}  Kf7 {[%clk 0:00:17]} 84. Rh6 {[%clk 0:00:15]}  Kg8 {[%clk 0:00:17]} 85. Rh2 {[%clk 0:00:13]}  Ra6 {[%clk 0:00:16]} 86. Rc2 {[%clk 0:00:11]}  Kf7 {[%clk 0:00:17]} 87. Rc7+ {[%clk 0:00:12]}  Kg8 {[%clk 0:00:17]} 88. Re7 {[%clk 0:00:12]}  Kf8 {[%clk 0:00:17]} 89. Re5 {[%clk 0:00:11]}  Kf7 {[%clk 0:00:17]} 90. Rb5 {[%clk 0:00:11]}  Rc6 {[%clk 0:00:17]} 91. Rb7+ {[%clk 0:00:11]}  Kf8 {[%clk 0:00:17]} 92. f6 {[%clk 0:00:12]}  Rc1 {[%clk 0:00:17]} 93. Kf5 {[%clk 0:00:12]}  Rf1+ {[%clk 0:00:18]} 94. Ke6 {[%clk 0:00:13]}  Re1+ {[%clk 0:00:18]} 95. Kf5 {[%clk 0:00:13]}  Rf1+ {[%clk 0:00:19]} 96. Kg6 {[%clk 0:00:14]}  Rg1+ {[%clk 0:00:19]} 97. Kf5 {[%clk 0:00:15]}  Rf1+ {[%clk 0:00:20]} 1/2-1/2


[Site "https://www.chess.com"]

[Event "Titled Tuesday Blitz February 21 Early 2023"]
[White "Daneshvar, Bardiya"]
[Black "Wadsworth, Matthew J"]
[WhiteFideId "12576468"]
[BlackFideId "415804"]
[WhiteElo "2540"]
[BlackElo "2428"]
[Result "1-0"]
[Round "02"]
[TimeControl "180+2"]
[Date "2023.02.21"]
[WhiteClock "0:01:11"]
[BlackClock "0:00:01"]

1. b3 {[%clk 0:03:00]}  e5 {[%clk 0:02:59]} 2. Bb2 {[%clk 0:03:01]}  Nc6 {[%clk 0:02:59]} 3. c4 {[%clk 0:03:01]}  Nf6 {[%clk 0:02:58]} 4. Nf3 {[%clk 0:03:01]}  e4 {[%clk 0:02:49]} 5. Nd4 {[%clk 0:03:00]}  Bc5 {[%clk 0:02:48]} 6. Nf5 {[%clk 0:02:54]}  O-O {[%clk 0:02:41]} 7. e3 {[%clk 0:02:54]}  d5 {[%clk 0:02:30]} 8. cxd5 {[%clk 0:02:45]}  Qxd5 {[%clk 0:02:17]} 9. Ng3 {[%clk 0:02:39]}  Qe6 {[%clk 0:01:45]} 10. Bxf6 {[%clk 0:02:29]}  Qxf6 {[%clk 0:01:42]} 11. Nc3 {[%clk 0:02:29]}  Be7 {[%clk 0:01:18]} 12. Ngxe4 {[%clk 0:02:24]}  Qg6 {[%clk 0:01:17]} 13. Ng3 {[%clk 0:02:20]}  f5 {[%clk 0:01:04]} 14. Bc4+ {[%clk 0:02:11]}  Kh8 {[%clk 0:01:04]} 15. Nd5 {[%clk 0:02:11]}  Bd6 {[%clk 0:01:02]} 16. O-O {[%clk 0:02:11]}  Ne5 {[%clk 0:00:55]} 17. d4 {[%clk 0:02:05]}  Nxc4 {[%clk 0:00:51]} 18. bxc4 {[%clk 0:02:02]}  c6 {[%clk 0:00:41]} 19. Nf4 {[%clk 0:02:01]}  Bxf4 {[%clk 0:00:30]} 20. exf4 {[%clk 0:02:02]}  Be6 {[%clk 0:00:31]} 21. Qe2 {[%clk 0:01:52]}  Rad8 {[%clk 0:00:28]} 22. Rad1 {[%clk 0:01:49]}  Qf7 {[%clk 0:00:21]} 23. Rfe1 {[%clk 0:01:39]}  Bxc4 {[%clk 0:00:21]} 24. Qe5 {[%clk 0:01:40]}  Bxa2 {[%clk 0:00:12]} 25. Qc5 {[%clk 0:01:38]}  b6 {[%clk 0:00:11]} 26. Qxc6 {[%clk 0:01:38]}  Bd5 {[%clk 0:00:11]} 27. Qb5 {[%clk 0:01:39]}  h6 {[%clk 0:00:10]} 28. Re5 {[%clk 0:01:38]}  Rfe8 {[%clk 0:00:10]} 29. Rxf5 {[%clk 0:01:36]}  Qd7 {[%clk 0:00:09]} 30. Qd3 {[%clk 0:01:31]}  a5 {[%clk 0:00:07]} 31. Re5 {[%clk 0:01:31]}  a4 {[%clk 0:00:07]} 32. h3 {[%clk 0:01:28]}  Ra8 {[%clk 0:00:06]} 33. Qa3 {[%clk 0:01:27]}  b5 {[%clk 0:00:05]} 34. Rde1 {[%clk 0:01:27]}  Bc4 {[%clk 0:00:04]} 35. Nf5 {[%clk 0:01:26]}  Rf8 {[%clk 0:00:03]} 36. g4 {[%clk 0:01:21]}  Rxf5 {[%clk 0:00:01]} 37. gxf5 {[%clk 0:01:18]}  Qxd4 {[%clk 0:00:02]} 38. Qf3 {[%clk 0:01:12]}  Rf8 {[%clk 0:00:01]} 39. Re8 {[%clk 0:01:11]}  Qf6 {[%clk 0:00:01]} 40. Qa8 {[%clk 0:01:10]}  Rxe8 {[%clk 0:00:01]} 41. Rxe8+ {[%clk 0:01:11]}  Kh7 {[%clk 0:00:01]} 42. Rh8# {[%clk 0:01:11]} 1-0


[Site "https://www.chess.com"]

[Event "Titled Tuesday Blitz February 21 Early 2023"]
[White "Fiorito, Joaquin"]
[Black "Van Foreest, Jorden"]
[WhiteFideId "180173"]
[BlackFideId "1039784"]
[WhiteElo "2405"]
[BlackElo "2689"]
[Result "1-0"]
[Round "02"]
[TimeControl "180+2"]
[Date "2023.02.21"]
[WhiteClock "0:00:12"]
[BlackClock "0:00:07"]

1. d4 {[%clk 0:03:00]}  Nf6 {[%clk 0:02:58]} 2. Nc3 {[%clk 0:03:01]}  d5 {[%clk 0:02:58]} 3. Bf4 {[%clk 0:03:00]}  e6 {[%clk 0:02:53]} 4. Nb5 {[%clk 0:03:00]}  Bb4+ {[%clk 0:02:47]} 5. c3 {[%clk 0:03:01]}  Ba5 {[%clk 0:02:48]} 6. a4 {[%clk 0:03:01]}  a6 {[%clk 0:02:46]} 7. b4 {[%clk 0:03:02]}  Bb6 {[%clk 0:02:42]} 8. a5 {[%clk 0:03:01]}  axb5 {[%clk 0:02:22]} 9. axb6 {[%clk 0:03:02]}  Rxa1 {[%clk 0:02:22]} 10. Qxa1 {[%clk 0:03:03]}  Na6 {[%clk 0:02:17]} 11. bxc7 {[%clk 0:02:52]}  Nxc7 {[%clk 0:02:11]} 12. e3 {[%clk 0:02:53]}  Bd7 {[%clk 0:02:05]} 13. Bd3 {[%clk 0:02:46]}  O-O {[%clk 0:02:00]} 14. Ne2 {[%clk 0:02:42]}  Na8 {[%clk 0:01:58]} 15. Qa7 {[%clk 0:02:23]}  Qb6 {[%clk 0:01:56]} 16. Qa3 {[%clk 0:01:50]}  Qc6 {[%clk 0:01:52]} 17. O-O {[%clk 0:01:45]}  Nb6 {[%clk 0:01:51]} 18. Ra1 {[%clk 0:01:23]}  Na4 {[%clk 0:01:50]} 19. Rc1 {[%clk 0:00:56]}  Rc8 {[%clk 0:01:49]} 20. f3 {[%clk 0:00:55]}  Nh5 {[%clk 0:01:45]} 21. Bg5 {[%clk 0:00:49]}  Ra8 {[%clk 0:01:45]} 22. g4 {[%clk 0:00:43]}  Nf6 {[%clk 0:01:45]} 23. Bxf6 {[%clk 0:00:44]}  gxf6 {[%clk 0:01:46]} 24. Qb3 {[%clk 0:00:35]}  Nb6 {[%clk 0:01:45]} 25. Nf4 {[%clk 0:00:30]}  Nc4 {[%clk 0:01:29]} 26. Kf2 {[%clk 0:00:23]}  Ra3 {[%clk 0:01:27]} 27. Qb1 {[%clk 0:00:22]}  Qa6 {[%clk 0:01:27]} 28. Nh5 {[%clk 0:00:17]}  Ra2+ {[%clk 0:01:23]} 29. Kg3 {[%clk 0:00:17]}  e5 {[%clk 0:01:19]} 30. Bxc4 {[%clk 0:00:17]}  bxc4 {[%clk 0:00:32]} 31. g5 {[%clk 0:00:13]}  fxg5 {[%clk 0:00:30]} 32. dxe5 {[%clk 0:00:14]}  Qg6 {[%clk 0:00:15]} 33. Nf6+ {[%clk 0:00:12]}  Kg7 {[%clk 0:00:15]} 34. Qxa2 {[%clk 0:00:12]}  Qh6 {[%clk 0:00:12]} 35. Nxd7 {[%clk 0:00:11]}  Qh4+ {[%clk 0:00:13]} 36. Kg2 {[%clk 0:00:11]}  g4 {[%clk 0:00:13]} 37. Qe2 {[%clk 0:00:12]}  Qh3+ {[%clk 0:00:13]} 38. Kg1 {[%clk 0:00:11]}  gxf3 {[%clk 0:00:13]} 39. Qf2 {[%clk 0:00:11]}  Qxd7 {[%clk 0:00:12]} 40. Qg3+ {[%clk 0:00:12]}  Kf8 {[%clk 0:00:12]} 41. Qxf3 {[%clk 0:00:12]}  Qe6 {[%clk 0:00:12]} 42. Rd1 {[%clk 0:00:12]}  Qg6+ {[%clk 0:00:12]} 43. Qg3 {[%clk 0:00:11]}  Qe4 {[%clk 0:00:10]} 44. Rf1 {[%clk 0:00:09]}  b5 {[%clk 0:00:06]} 45. Qf4 {[%clk 0:00:09]}  Qg6+ {[%clk 0:00:07]} 46. Kh1 {[%clk 0:00:10]}  Ke8 {[%clk 0:00:06]} 47. Qf6 {[%clk 0:00:10]}  Qe4+ {[%clk 0:00:06]} 48. Qf3 {[%clk 0:00:10]}  Qg6 {[%clk 0:00:05]} 49. Rg1 {[%clk 0:00:10]}  Qe6 {[%clk 0:00:05]} 50. Rg8+ {[%clk 0:00:10]}  Ke7 {[%clk 0:00:05]} 51. Qf6+ {[%clk 0:00:10]}  Qxf6 {[%clk 0:00:04]} 52. exf6+ {[%clk 0:00:11]}  Kxf6 {[%clk 0:00:05]} 53. Rb8 {[%clk 0:00:11]}  Ke5 {[%clk 0:00:06]} 54. Rxb5 {[%clk 0:00:12]}  Ke4 {[%clk 0:00:07]} 55. Rc5 {[%clk 0:00:12]}  f5 {[%clk 0:00:07]} 56. b5 {[%clk 0:00:12]} 1-0


[Site "https://www.chess.com"]

[Event "Titled Tuesday Blitz February 21 Early 2023"]
[White "Alekseenko, Kirill"]
[Black "Jakubowski, Krzysztof"]
[WhiteFideId "4135539"]
[BlackFideId "1112848"]
[WhiteElo "2686"]
[BlackElo "2486"]
[Result "1-0"]
[Round "02"]
[TimeControl "180+2"]
[Date "2023.02.21"]
[WhiteClock "0:00:14"]
[BlackClock "0:00:03"]

1. d4 {[%clk 0:03:00]}  Nf6 {[%clk 0:02:58]} 2. Nc3 {[%clk 0:03:01]}  d5 {[%clk 0:02:57]} 3. Bf4 {[%clk 0:03:01]}  a6 {[%clk 0:02:53]} 4. e3 {[%clk 0:03:01]}  e6 {[%clk 0:02:52]} 5. g4 {[%clk 0:03:01]}  c5 {[%clk 0:02:45]} 6. g5 {[%clk 0:03:01]}  Nfd7 {[%clk 0:02:43]} 7. h4 {[%clk 0:03:01]}  Nc6 {[%clk 0:02:39]} 8. Nf3 {[%clk 0:03:02]}  b5 {[%clk 0:02:32]} 9. Ne2 {[%clk 0:03:02]}  Bb7 {[%clk 0:02:23]} 10. Bg2 {[%clk 0:03:00]}  Be7 {[%clk 0:02:14]} 11. c3 {[%clk 0:03:00]}  f5 {[%clk 0:02:01]} 12. Nc1 {[%clk 0:02:39]}  c4 {[%clk 0:01:56]} 13. Ne2 {[%clk 0:02:28]}  O-O {[%clk 0:01:54]} 14. O-O {[%clk 0:02:25]}  a5 {[%clk 0:01:53]} 15. Kh1 {[%clk 0:02:24]}  b4 {[%clk 0:01:51]} 16. Rg1 {[%clk 0:02:17]}  a4 {[%clk 0:01:50]} 17. a3 {[%clk 0:02:15]}  bxa3 {[%clk 0:01:50]} 18. bxa3 {[%clk 0:02:16]}  Na5 {[%clk 0:01:49]} 19. Ne5 {[%clk 0:02:12]}  Nb3 {[%clk 0:01:48]} 20. Ra2 {[%clk 0:02:12]}  Ra6 {[%clk 0:01:43]} 21. Nxd7 {[%clk 0:02:01]}  Qxd7 {[%clk 0:01:43]} 22. Be5 {[%clk 0:02:02]}  Bd6 {[%clk 0:01:32]} 23. Bxd6 {[%clk 0:01:56]}  Qxd6 {[%clk 0:01:32]} 24. Nf4 {[%clk 0:01:57]}  Rb6 {[%clk 0:01:30]} 25. Bf3 {[%clk 0:01:53]}  Bc6 {[%clk 0:01:30]} 26. Qf1 {[%clk 0:01:45]}  Rfb8 {[%clk 0:01:30]} 27. Bd1 {[%clk 0:01:28]}  Na5 {[%clk 0:01:21]} 28. Bc2 {[%clk 0:01:29]}  Rb2 {[%clk 0:01:18]} 29. Qa1 {[%clk 0:01:29]}  Rxa2 {[%clk 0:01:17]} 30. Qxa2 {[%clk 0:01:30]}  Bd7 {[%clk 0:01:13]} 31. Rb1 {[%clk 0:01:28]}  Nb3 {[%clk 0:01:13]} 32. Bd1 {[%clk 0:01:19]}  Rb6 {[%clk 0:01:11]} 33. Kg1 {[%clk 0:01:13]}  Qb8 {[%clk 0:01:11]} 34. Qb2 {[%clk 0:01:01]}  Rb5 {[%clk 0:01:08]} 35. Qa2 {[%clk 0:00:57]}  Qb6 {[%clk 0:01:05]} 36. Bc2 {[%clk 0:00:50]}  Qd6 {[%clk 0:01:04]} 37. Rd1 {[%clk 0:00:47]}  Kf8 {[%clk 0:01:01]} 38. f3 {[%clk 0:00:47]}  Ke7 {[%clk 0:00:59]} 39. Kg2 {[%clk 0:00:48]}  Kd8 {[%clk 0:00:59]} 40. Ne2 {[%clk 0:00:43]}  Kc7 {[%clk 0:00:58]} 41. Nf4 {[%clk 0:00:43]}  Kb6 {[%clk 0:00:58]} 42. Rb1 {[%clk 0:00:42]}  Ka5 {[%clk 0:00:58]} 43. Rd1 {[%clk 0:00:37]}  Rb8 {[%clk 0:00:54]} 44. Ne2 {[%clk 0:00:37]}  Rh8 {[%clk 0:00:49]} 45. f4 {[%clk 0:00:38]}  h6 {[%clk 0:00:46]} 46. Ng1 {[%clk 0:00:37]}  hxg5 {[%clk 0:00:45]} 47. hxg5 {[%clk 0:00:37]}  Qe7 {[%clk 0:00:43]} 48. Nf3 {[%clk 0:00:36]}  Qf7 {[%clk 0:00:41]} 49. Rh1 {[%clk 0:00:34]}  Rxh1 {[%clk 0:00:41]} 50. Kxh1 {[%clk 0:00:35]}  Qh5+ {[%clk 0:00:40]} 51. Kg2 {[%clk 0:00:36]}  Be8 {[%clk 0:00:39]} 52. Bd1 {[%clk 0:00:32]}  Qg4+ {[%clk 0:00:38]} 53. Kf2 {[%clk 0:00:33]}  Bh5 {[%clk 0:00:38]} 54. Qc2 {[%clk 0:00:20]}  Qh3 {[%clk 0:00:38]} 55. Be2 {[%clk 0:00:20]}  g6 {[%clk 0:00:22]} 56. Qd1 {[%clk 0:00:20]}  Bxf3 {[%clk 0:00:20]} 57. Bxf3 {[%clk 0:00:20]}  Qh4+ {[%clk 0:00:20]} 58. Kg2 {[%clk 0:00:20]}  Kb5 {[%clk 0:00:18]} 59. Qb1 {[%clk 0:00:20]}  Kc6 {[%clk 0:00:18]} 60. Qf1 {[%clk 0:00:20]}  Kd6 {[%clk 0:00:18]} 61. Qd1 {[%clk 0:00:20]}  Ke7 {[%clk 0:00:18]} 62. Qf1 {[%clk 0:00:21]}  Kf7 {[%clk 0:00:18]} 63. Bd1 {[%clk 0:00:20]}  Ke7 {[%clk 0:00:17]} 64. Bf3 {[%clk 0:00:21]}  Kd6 {[%clk 0:00:17]} 65. Qe2 {[%clk 0:00:19]}  Kc6 {[%clk 0:00:17]} 66. Qxc4+ {[%clk 0:00:19]}  Kd6 {[%clk 0:00:15]} 67. Qb4+ {[%clk 0:00:19]}  Kc7 {[%clk 0:00:14]} 68. Qxa4 {[%clk 0:00:20]}  Nd2 {[%clk 0:00:14]} 69. Qa7+ {[%clk 0:00:20]}  Kd6 {[%clk 0:00:13]} 70. Qa6+ {[%clk 0:00:21]}  Kd7 {[%clk 0:00:12]} 71. Qe2 {[%clk 0:00:21]}  Nc4 {[%clk 0:00:11]} 72. a4 {[%clk 0:00:20]}  Kc7 {[%clk 0:00:11]} 73. Qf2 {[%clk 0:00:15]}  Qxf2+ {[%clk 0:00:06]} 74. Kxf2 {[%clk 0:00:16]}  Kb6 {[%clk 0:00:06]} 75. Be2 {[%clk 0:00:17]}  Nd2 {[%clk 0:00:05]} 76. Bb5 {[%clk 0:00:15]}  Ne4+ {[%clk 0:00:05]} 77. Kf3 {[%clk 0:00:16]}  Nd6 {[%clk 0:00:05]} 78. Bd7 {[%clk 0:00:16]}  Ka5 {[%clk 0:00:02]} 79. Bxe6 {[%clk 0:00:16]}  Kxa4 {[%clk 0:00:02]} 80. Bxd5 {[%clk 0:00:17]}  Kb5 {[%clk 0:00:03]} 81. e4 {[%clk 0:00:14]} 1-0


[Site "https://www.chess.com"]